[Event "Titled Tuesday Blitz October 11 Late 2022"]
[White "Jimenez, Joaquin"]
[Black "Kislinsky, Alexey"]
[WhiteFideId "109860"]
[BlackFideId "14108801"]
[WhiteElo "2163"]
[BlackElo "2260"]
[Result "1/2-1/2"]
[Round "01"]
[TimeControl "180+1"]
[Date "2022.10.12"]
[WhiteClock "0:00:13"]
[BlackClock "0:00:14"]

1. e4 {[%clk 0:02:59]}  c5 {[%clk 0:02:59]} 2. Nf3 {[%clk 0:02:56]}  Nc6 {[%clk 0:02:59]} 3. d4 {[%clk 0:02:55]}  cxd4 {[%clk 0:02:59]} 4. Nxd4 {[%clk 0:02:56]}  g6 {[%clk 0:02:59]} 5. Nc3 {[%clk 0:02:56]}  Bg7 {[%clk 0:02:59]} 6. Be3 {[%clk 0:02:57]}  Nf6 {[%clk 0:02:59]} 7. Bc4 {[%clk 0:02:56]}  O-O {[%clk 0:02:57]} 8. Bb3 {[%clk 0:02:56]}  a5 {[%clk 0:02:56]} 9. a4 {[%clk 0:02:55]}  Ng4 {[%clk 0:02:55]} 10. Qxg4 {[%clk 0:02:54]}  Nxd4 {[%clk 0:02:55]} 11. Bxd4 {[%clk 0:02:54]}  Bxd4 {[%clk 0:02:54]} 12. Qg3 {[%clk 0:02:53]}  d6 {[%clk 0:02:47]} 13. O-O-O {[%clk 0:02:53]}  Bg7 {[%clk 0:02:44]} 14. h4 {[%clk 0:02:52]}  Be6 {[%clk 0:02:44]} 15. h5 {[%clk 0:02:51]}  Bxb3 {[%clk 0:02:44]} 16. cxb3 {[%clk 0:02:51]}  Qb6 {[%clk 0:02:42]} 17. Nd5 {[%clk 0:02:46]}  Qd8 {[%clk 0:02:26]} 18. hxg6 {[%clk 0:02:43]}  fxg6 {[%clk 0:02:27]} 19. Qh3 {[%clk 0:02:39]}  Qc8+ {[%clk 0:02:19]} 20. Kb1 {[%clk 0:02:36]}  Qxh3 {[%clk 0:02:19]} 21. Rxh3 {[%clk 0:02:36]}  Rxf2 {[%clk 0:02:14]} 22. Nxe7+ {[%clk 0:02:36]}  Kf7 {[%clk 0:02:07]} 23. Rxh7 {[%clk 0:02:28]}  Rxb2+ {[%clk 0:02:07]} 24. Kc1 {[%clk 0:02:26]}  Rf2 {[%clk 0:01:52]} 25. Rd3 {[%clk 0:02:17]}  Re8 {[%clk 0:01:44]} 26. Nd5 {[%clk 0:02:07]}  Rxe4 {[%clk 0:01:43]} 27. Rf3+ {[%clk 0:02:07]}  Rxf3 {[%clk 0:01:43]} 28. gxf3 {[%clk 0:02:08]}  Rd4 {[%clk 0:01:35]} 29. Nb6 {[%clk 0:02:00]}  Rd3 {[%clk 0:01:30]} 30. Nc4 {[%clk 0:01:58]}  Kg8 {[%clk 0:01:20]} 31. Rh2 {[%clk 0:01:52]}  Rxf3 {[%clk 0:01:15]} 32. Nxa5 {[%clk 0:01:49]}  b6 {[%clk 0:01:14]} 33. Nc4 {[%clk 0:01:49]}  Rxb3 {[%clk 0:01:14]} 34. Nxd6 {[%clk 0:01:48]}  Be5 {[%clk 0:01:13]} 35. Rg2 {[%clk 0:01:41]}  Kg7 {[%clk 0:01:01]} 36. Nb5 {[%clk 0:01:26]}  Rb4 {[%clk 0:00:58]} 37. Re2 {[%clk 0:01:24]}  Bf4+ {[%clk 0:00:57]} 38. Kc2 {[%clk 0:01:24]}  Rxa4 {[%clk 0:00:57]} 39. Re6 {[%clk 0:01:19]}  Ra6 {[%clk 0:00:51]} 40. Kd3 {[%clk 0:01:12]}  Kf7 {[%clk 0:00:46]} 41. Rc6 {[%clk 0:01:11]}  Be5 {[%clk 0:00:41]} 42. Ke4 {[%clk 0:01:10]}  Bf6 {[%clk 0:00:40]} 43. Kd5 {[%clk 0:01:02]}  Be7 {[%clk 0:00:38]} 44. Ke4 {[%clk 0:00:50]}  Ra4+ {[%clk 0:00:35]} 45. Kf3 {[%clk 0:00:49]}  Bc5 {[%clk 0:00:34]} 46. Nc7 {[%clk 0:00:45]}  Rd4 {[%clk 0:00:29]} 47. Nb5 {[%clk 0:00:38]}  Rd5 {[%clk 0:00:29]} 48. Ke4 {[%clk 0:00:33]}  Rh5 {[%clk 0:00:27]} 49. Nc7 {[%clk 0:00:24]}  Rh4+ {[%clk 0:00:26]} 50. Kd5 {[%clk 0:00:24]}  Rd4+ {[%clk 0:00:26]} 51. Ke5 {[%clk 0:00:23]}  Rd7 {[%clk 0:00:24]} 52. Nb5 {[%clk 0:00:21]}  Kg7 {[%clk 0:00:22]} 53. Ke6 {[%clk 0:00:21]}  Rf7 {[%clk 0:00:23]} 54. Rc8 {[%clk 0:00:17]}  g5 {[%clk 0:00:23]} 55. Nc7 {[%clk 0:00:14]}  g4 {[%clk 0:00:21]} 56. Ne8+ {[%clk 0:00:15]}  Kg6 {[%clk 0:00:21]} 57. Nc7 {[%clk 0:00:14]}  g3 {[%clk 0:00:20]} 58. Nd5 {[%clk 0:00:14]}  g2 {[%clk 0:00:18]} 59. Rg8+ {[%clk 0:00:15]}  Rg7 {[%clk 0:00:18]} 60. Nf4+ {[%clk 0:00:15]}  Kh7 {[%clk 0:00:17]} 61. Rxg7+ {[%clk 0:00:15]}  Kxg7 {[%clk 0:00:18]} 62. Nxg2 {[%clk 0:00:15]}  b5 {[%clk 0:00:17]} 63. Kd5 {[%clk 0:00:16]}  Bf8 {[%clk 0:00:16]} 64. Nf4 {[%clk 0:00:14]}  Kf6 {[%clk 0:00:15]} 65. Ne6 {[%clk 0:00:13]}  Be7 {[%clk 0:00:13]} 66. Nd4 {[%clk 0:00:13]}  b4 {[%clk 0:00:14]} 67. Kc4 {[%clk 0:00:13]}  Ke5 {[%clk 0:00:13]} 68. Nc6+ {[%clk 0:00:13]}  Ke4 {[%clk 0:00:14]} 69. Nxe7 {[%clk 0:00:13]}  b3 {[%clk 0:00:14]} 70. Kxb3 {[%clk 0:00:13]} 1/2-1/2


[Site "https://www.chess.com"]

[Event "Titled Tuesday Blitz October 11 Late 2022"]
[White "Koellner, Ruben Gideon"]
[Black "Ardila, Oscar Humberto"]
[WhiteFideId "12993093"]
[BlackFideId "4404742"]
[WhiteElo "2303"]
[BlackElo "1898"]
[Result "1-0"]
[Round "01"]
[TimeControl "180+1"]
[Date "2022.10.12"]
[WhiteClock "0:00:03"]
[BlackClock "0:00:05"]

1. d4 {[%clk 0:02:53]}  Nf6 {[%clk 0:02:59]} 2. Bg5 {[%clk 0:02:47]}  e6 {[%clk 0:02:58]} 3. Nd2 {[%clk 0:02:44]}  Be7 {[%clk 0:02:58]} 4. e4 {[%clk 0:02:41]}  d6 {[%clk 0:02:59]} 5. c3 {[%clk 0:02:35]}  Nbd7 {[%clk 0:02:58]} 6. f4 {[%clk 0:02:33]}  h6 {[%clk 0:02:58]} 7. Bxf6 {[%clk 0:02:29]}  Nxf6 {[%clk 0:02:57]} 8. Bd3 {[%clk 0:02:25]}  c5 {[%clk 0:02:57]} 9. Ne2 {[%clk 0:02:22]}  Qb6 {[%clk 0:02:56]} 10. Qb3 {[%clk 0:02:21]}  Qc7 {[%clk 0:02:54]} 11. O-O {[%clk 0:02:14]}  Bd7 {[%clk 0:02:54]} 12. h3 {[%clk 0:02:05]}  a6 {[%clk 0:02:52]} 13. a4 {[%clk 0:01:54]}  O-O {[%clk 0:02:50]} 14. Nf3 {[%clk 0:01:49]}  Bc6 {[%clk 0:02:47]} 15. Ng3 {[%clk 0:01:44]}  Rac8 {[%clk 0:02:43]} 16. Qd1 {[%clk 0:01:40]}  b5 {[%clk 0:02:33]} 17. Qe2 {[%clk 0:01:38]}  cxd4 {[%clk 0:02:26]} 18. Nxd4 {[%clk 0:01:25]}  Qb6 {[%clk 0:02:25]} 19. axb5 {[%clk 0:01:23]}  axb5 {[%clk 0:02:24]} 20. Kh2 {[%clk 0:01:18]}  Rb8 {[%clk 0:02:10]} 21. b4 {[%clk 0:01:01]}  Qb7 {[%clk 0:02:07]} 22. Rfe1 {[%clk 0:00:47]}  Rfc8 {[%clk 0:01:56]} 23. Ra3 {[%clk 0:00:46]}  Qc7 {[%clk 0:01:38]} 24. Nxb5 {[%clk 0:00:39]}  Bxb5 {[%clk 0:01:36]} 25. Bxb5 {[%clk 0:00:40]}  d5 {[%clk 0:01:29]} 26. e5 {[%clk 0:00:40]}  Nh7 {[%clk 0:01:16]} 27. Bd3 {[%clk 0:00:38]}  Nf8 {[%clk 0:01:15]} 28. Rb3 {[%clk 0:00:33]}  Qb6 {[%clk 0:01:10]} 29. b5 {[%clk 0:00:31]}  Bc5 {[%clk 0:01:08]} 30. Ra1 {[%clk 0:00:28]}  Ra8 {[%clk 0:01:06]} 31. Rxa8 {[%clk 0:00:23]}  Rxa8 {[%clk 0:01:06]} 32. Rb2 {[%clk 0:00:22]}  Ra3 {[%clk 0:01:03]} 33. Qc2 {[%clk 0:00:20]}  Qa5 {[%clk 0:01:02]} 34. Rb3 {[%clk 0:00:15]}  Ra2 {[%clk 0:01:01]} 35. Qb1 {[%clk 0:00:13]}  Bb6 {[%clk 0:00:54]} 36. Ne2 {[%clk 0:00:12]}  Ra1 {[%clk 0:00:52]} 37. Qc2 {[%clk 0:00:11]}  Nd7 {[%clk 0:00:43]} 38. Rb1 {[%clk 0:00:11]}  Ra2 {[%clk 0:00:41]} 39. Rb2 {[%clk 0:00:11]}  Ra1 {[%clk 0:00:39]} 40. c4 {[%clk 0:00:09]}  Qe1 {[%clk 0:00:33]} 41. cxd5 {[%clk 0:00:02]}  Bf2 {[%clk 0:00:33]} 42. Rb1 {[%clk 0:00:01]}  Rxb1 {[%clk 0:00:31]} 43. Qxb1 {[%clk 0:00:01]}  Qxb1 {[%clk 0:00:26]} 44. Bxb1 {[%clk 0:00:02]}  exd5 {[%clk 0:00:26]} 45. Bd3 {[%clk 0:00:03]}  Nb6 {[%clk 0:00:26]} 46. g3 {[%clk 0:00:02]}  Kf8 {[%clk 0:00:25]} 47. Kg2 {[%clk 0:00:03]}  Bc5 {[%clk 0:00:22]} 48. Nc3 {[%clk 0:00:03]}  Ke7 {[%clk 0:00:20]} 49. Kf3 {[%clk 0:00:03]}  Ke6 {[%clk 0:00:20]} 50. g4 {[%clk 0:00:03]}  g5 {[%clk 0:00:17]} 51. Bf5+ {[%clk 0:00:03]}  Ke7 {[%clk 0:00:17]} 52. Ne2 {[%clk 0:00:04]}  Nc4 {[%clk 0:00:15]} 53. fxg5 {[%clk 0:00:04]}  Nd2+ {[%clk 0:00:13]} 54. Kg2 {[%clk 0:00:03]}  hxg5 {[%clk 0:00:13]} 55. Bd3 {[%clk 0:00:03]}  Ne4 {[%clk 0:00:13]} 56. Bxe4 {[%clk 0:00:03]}  dxe4 {[%clk 0:00:13]} 57. Nc3 {[%clk 0:00:04]}  e3 {[%clk 0:00:13]} 58. Kf3 {[%clk 0:00:04]}  Ke6 {[%clk 0:00:13]} 59. Ne4 {[%clk 0:00:05]}  Bb6 {[%clk 0:00:12]} 60. Nxg5+ {[%clk 0:00:05]}  Kxe5 {[%clk 0:00:13]} 61. Nxf7+ {[%clk 0:00:05]}  Kd4 {[%clk 0:00:13]} 62. Ng5 {[%clk 0:00:03]}  Kd3 {[%clk 0:00:13]} 63. Kg2 {[%clk 0:00:02]}  e2 {[%clk 0:00:12]} 64. Nf3 {[%clk 0:00:03]}  Ke3 {[%clk 0:00:12]} 65. h4 {[%clk 0:00:04]}  Kf4 {[%clk 0:00:10]} 66. g5 {[%clk 0:00:05]}  Kf5 {[%clk 0:00:09]} 67. Ne1 {[%clk 0:00:05]}  Kg4 {[%clk 0:00:09]} 68. g6 {[%clk 0:00:05]}  Bd4 {[%clk 0:00:09]} 69. b6 {[%clk 0:00:05]}  Kh5 {[%clk 0:00:07]} 70. b7 {[%clk 0:00:03]}  Bc3 {[%clk 0:00:07]} 71. Nd3 {[%clk 0:00:03]}  Be5 {[%clk 0:00:04]} 72. g7 {[%clk 0:00:03]}  Bxg7 {[%clk 0:00:04]} 73. b8=Q {[%clk 0:00:03]}  Kxh4 {[%clk 0:00:05]} 74. Qf4+ {[%clk 0:00:03]}  Kh5 {[%clk 0:00:05]} 75. Qf5+ {[%clk 0:00:03]} 1-0


[Site "https://www.chess.com"]

[Event "Titled Tuesday Blitz October 11 Late 2022"]
[White "Korchmar, Vasiliy"]
[Black "Jensen, Matthew R"]
[WhiteFideId "24131750"]
[BlackFideId "2018110"]
[WhiteElo "2370"]
[BlackElo "2290"]
[Result "1-0"]
[Round "01"]
[TimeControl "180+1"]
[Date "2022.10.12"]
[WhiteClock "0:01:41"]
[BlackClock "0:00:46"]

1. e4 {[%clk 0:03:00]}  c6 {[%clk 0:02:59]} 2. d4 {[%clk 0:02:59]}  d5 {[%clk 0:02:59]} 3. e5 {[%clk 0:02:59]}  c5 {[%clk 0:02:59]} 4. dxc5 {[%clk 0:02:47]}  e6 {[%clk 0:02:58]} 5. Nf3 {[%clk 0:02:46]}  Bxc5 {[%clk 0:02:58]} 6. Bd3 {[%clk 0:02:46]}  Ne7 {[%clk 0:02:56]} 7. a3 {[%clk 0:02:42]}  Ng6 {[%clk 0:02:56]} 8. O-O {[%clk 0:02:37]}  O-O {[%clk 0:02:52]} 9. Ng5 {[%clk 0:02:30]}  h6 {[%clk 0:02:41]} 10. Nxf7 {[%clk 0:02:28]}  Rxf7 {[%clk 0:02:11]} 11. Bxg6 {[%clk 0:02:28]}  Rf8 {[%clk 0:02:10]} 12. Qh5 {[%clk 0:02:17]}  Qb6 {[%clk 0:02:01]} 13. Nc3 {[%clk 0:02:00]}  Rxf2 {[%clk 0:01:54]} 14. Rxf2 {[%clk 0:01:59]}  Bxf2+ {[%clk 0:01:54]} 15. Kh1 {[%clk 0:02:00]}  Be3 {[%clk 0:01:44]} 16. Qf3 {[%clk 0:01:44]}  Qd8 {[%clk 0:00:50]} 17. Bxe3 {[%clk 0:01:40]}  d4 {[%clk 0:00:49]} 18. Qf7+ {[%clk 0:01:40]}  Kh8 {[%clk 0:00:49]} 19. Bxh6 {[%clk 0:01:41]}  Qg8 {[%clk 0:00:46]} 1-0


[Site "https://www.chess.com"]

[Event "Titled Tuesday Blitz October 11 Late 2022"]
[White "Kouskoutis, Georgios-Alexandros"]
[Black "Burke, Paul"]
[WhiteFideId "4234049"]
[BlackFideId "2605767"]
[WhiteElo "2187"]
[BlackElo "1873"]
[Result "1-0"]
[Round "01"]
[TimeControl "180+1"]
[Date "2022.10.12"]
[WhiteClock "0:00:03"]
[BlackClock "0:00:02"]

1. c4 {[%clk 0:03:00]}  a6 {[%clk 0:02:59]} 2. g3 {[%clk 0:03:00]}  d6 {[%clk 0:02:59]} 3. Bg2 {[%clk 0:03:00]}  Nd7 {[%clk 0:02:57]} 4. Nc3 {[%clk 0:03:01]}  g6 {[%clk 0:02:57]} 5. d4 {[%clk 0:03:01]}  Bg7 {[%clk 0:02:56]} 6. Nf3 {[%clk 0:03:01]}  h6 {[%clk 0:02:56]} 7. O-O {[%clk 0:03:01]}  e6 {[%clk 0:02:56]} 8. b3 {[%clk 0:02:56]}  Ne7 {[%clk 0:02:56]} 9. Bb2 {[%clk 0:02:55]}  O-O {[%clk 0:02:54]} 10. Rc1 {[%clk 0:02:53]}  f5 {[%clk 0:02:52]} 11. e4 {[%clk 0:02:35]}  e5 {[%clk 0:02:50]} 12. dxe5 {[%clk 0:02:30]}  dxe5 {[%clk 0:02:50]} 13. exf5 {[%clk 0:02:22]}  gxf5 {[%clk 0:02:46]} 14. Qc2 {[%clk 0:02:16]}  c6 {[%clk 0:02:34]} 15. Rcd1 {[%clk 0:02:12]}  Qe8 {[%clk 0:02:33]} 16. Rfe1 {[%clk 0:02:09]}  e4 {[%clk 0:02:07]} 17. Nd4 {[%clk 0:02:04]}  Ne5 {[%clk 0:02:04]} 18. Na4 {[%clk 0:01:29]}  Nd3 {[%clk 0:01:55]} 19. Rxd3 {[%clk 0:01:29]}  exd3 {[%clk 0:01:55]} 20. Qxd3 {[%clk 0:01:30]}  Qf7 {[%clk 0:01:42]} 21. Qe3 {[%clk 0:00:56]}  Ng6 {[%clk 0:01:29]} 22. Ba3 {[%clk 0:00:46]}  Rd8 {[%clk 0:01:11]} 23. Nf3 {[%clk 0:00:44]}  Bd7 {[%clk 0:01:05]} 24. Nb6 {[%clk 0:00:40]}  Rab8 {[%clk 0:01:04]} 25. Bd6 {[%clk 0:00:33]}  Re8 {[%clk 0:01:01]} 26. Bxb8 {[%clk 0:00:32]}  Rxe3 {[%clk 0:01:00]} 27. Rxe3 {[%clk 0:00:33]}  f4 {[%clk 0:00:49]} 28. gxf4 {[%clk 0:00:27]}  Nxf4 {[%clk 0:00:48]} 29. Bxf4 {[%clk 0:00:26]}  Qxf4 {[%clk 0:00:47]} 30. Nxd7 {[%clk 0:00:26]}  Qd6 {[%clk 0:00:37]} 31. Nde5 {[%clk 0:00:25]}  Qd1+ {[%clk 0:00:35]} 32. Bf1 {[%clk 0:00:20]}  Qc2 {[%clk 0:00:28]} 33. Re2 {[%clk 0:00:18]}  Qf5 {[%clk 0:00:26]} 34. Re3 {[%clk 0:00:17]}  Qc2 {[%clk 0:00:24]} 35. a4 {[%clk 0:00:17]}  Qf5 {[%clk 0:00:20]} 36. Bd3 {[%clk 0:00:13]}  Qf6 {[%clk 0:00:13]} 37. c5 {[%clk 0:00:10]}  Qd8 {[%clk 0:00:11]} 38. Bc4+ {[%clk 0:00:10]}  Kh7 {[%clk 0:00:10]} 39. Kg2 {[%clk 0:00:06]}  Qf6 {[%clk 0:00:09]} 40. h4 {[%clk 0:00:05]}  Qf4 {[%clk 0:00:07]} 41. Bd3+ {[%clk 0:00:05]}  Kg8 {[%clk 0:00:06]} 42. Re4 {[%clk 0:00:05]}  Qc1 {[%clk 0:00:05]} 43. Rg4 {[%clk 0:00:05]}  Kf8 {[%clk 0:00:03]} 44. Bc4 {[%clk 0:00:04]}  Qb2 {[%clk 0:00:02]} 45. Nd7+ {[%clk 0:00:03]} 1-0


[Site "https://www.chess.com"]

[Event "Titled Tuesday Blitz October 11 Late 2022"]
[White "Krishnan, Varun"]
[Black "Osmonbekov, Talaibek"]
[WhiteFideId "5054508"]
[BlackFideId "2017253"]
[WhiteElo "2626"]
[BlackElo "2135"]
[Result "1-0"]
[Round "01"]
[TimeControl "180+1"]
[Date "2022.10.12"]
[WhiteClock "0:00:12"]
[BlackClock "0:00:03"]

1. e4 {[%clk 0:02:57]}  c5 {[%clk 0:02:58]} 2. Nf3 {[%clk 0:02:56]}  d6 {[%clk 0:02:58]} 3. d4 {[%clk 0:02:55]}  cxd4 {[%clk 0:02:59]} 4. Nxd4 {[%clk 0:02:54]}  Nf6 {[%clk 0:03:00]} 5. Nc3 {[%clk 0:02:54]}  g6 {[%clk 0:03:01]} 6. Be3 {[%clk 0:02:54]}  Bg7 {[%clk 0:03:00]} 7. f3 {[%clk 0:02:54]}  O-O {[%clk 0:03:01]} 8. Qd2 {[%clk 0:02:55]}  Nc6 {[%clk 0:03:01]} 9. O-O-O {[%clk 0:02:55]}  d5 {[%clk 0:03:01]} 10. Kb1 {[%clk 0:02:55]}  Rb8 {[%clk 0:02:59]} 11. Ndb5 {[%clk 0:02:52]}  a6 {[%clk 0:02:33]} 12. Na7 {[%clk 0:02:51]}  Nxa7 {[%clk 0:02:05]} 13. Bxa7 {[%clk 0:02:50]}  Ra8 {[%clk 0:02:04]} 14. Qe3 {[%clk 0:02:49]}  e6 {[%clk 0:01:54]} 15. g4 {[%clk 0:02:30]}  Bd7 {[%clk 0:01:31]} 16. e5 {[%clk 0:02:06]}  Ne8 {[%clk 0:01:20]} 17. Bc5 {[%clk 0:02:06]}  Rc8 {[%clk 0:01:13]} 18. f4 {[%clk 0:01:58]}  Nc7 {[%clk 0:01:08]} 19. Bxf8 {[%clk 0:01:56]}  Qxf8 {[%clk 0:01:04]} 20. Bd3 {[%clk 0:01:43]}  Nb5 {[%clk 0:00:51]} 21. Nxb5 {[%clk 0:01:38]}  axb5 {[%clk 0:00:50]} 22. h4 {[%clk 0:01:34]}  Qb4 {[%clk 0:00:41]} 23. h5 {[%clk 0:01:31]}  d4 {[%clk 0:00:40]} 24. Qh3 {[%clk 0:01:24]}  Bc6 {[%clk 0:00:38]} 25. hxg6 {[%clk 0:01:18]}  hxg6 {[%clk 0:00:39]} 26. Rhg1 {[%clk 0:01:13]}  Bd5 {[%clk 0:00:37]} 27. f5 {[%clk 0:00:38]}  Ra8 {[%clk 0:00:17]} 28. b3 {[%clk 0:00:18]}  Qa3 {[%clk 0:00:16]} 29. f6 {[%clk 0:00:18]}  Qxa2+ {[%clk 0:00:13]} 30. Kc1 {[%clk 0:00:18]}  Qa1+ {[%clk 0:00:14]} 31. Kd2 {[%clk 0:00:18]}  Qc3+ {[%clk 0:00:15]} 32. Ke2 {[%clk 0:00:18]}  Ra2 {[%clk 0:00:14]} 33. Rd2 {[%clk 0:00:13]}  Be4 {[%clk 0:00:05]} 34. fxg7 {[%clk 0:00:11]}  Bxd3+ {[%clk 0:00:05]} 35. Qxd3 {[%clk 0:00:12]}  Qc5 {[%clk 0:00:03]} 36. Qxd4 {[%clk 0:00:12]} 1-0


[Site "https://www.chess.com"]

[Event "Titled Tuesday Blitz October 11 Late 2022"]
[White "Krstic, Milos"]
[Black "Riehle, Marco"]
[WhiteFideId "954888"]
[BlackFideId "12904392"]
[WhiteElo "2194"]
[BlackElo "2462"]
[Result "0-1"]
[Round "01"]
[TimeControl "180+1"]
[Date "2022.10.12"]
[WhiteClock "0:01:42"]
[BlackClock "0:01:20"]

1. e4 {[%clk 0:03:00]}  e5 {[%clk 0:02:58]} 2. Bc4 {[%clk 0:02:59]}  Nf6 {[%clk 0:02:57]} 3. d3 {[%clk 0:02:59]}  c6 {[%clk 0:02:47]} 4. Nf3 {[%clk 0:02:59]}  d5 {[%clk 0:02:48]} 5. Bb3 {[%clk 0:02:59]}  Bd6 {[%clk 0:02:46]} 6. Nc3 {[%clk 0:02:58]}  d4 {[%clk 0:02:45]} 7. Ne2 {[%clk 0:02:57]}  Be6 {[%clk 0:02:44]} 8. Ng3 {[%clk 0:02:55]}  Bxb3 {[%clk 0:02:42]} 9. axb3 {[%clk 0:02:56]}  Nbd7 {[%clk 0:02:38]} 10. Nf5 {[%clk 0:02:55]}  Bf8 {[%clk 0:02:37]} 11. O-O {[%clk 0:02:49]}  g6 {[%clk 0:02:33]} 12. Ng3 {[%clk 0:02:49]}  h5 {[%clk 0:02:33]} 13. h3 {[%clk 0:02:46]}  Bd6 {[%clk 0:02:12]} 14. Bg5 {[%clk 0:02:41]}  Be7 {[%clk 0:02:05]} 15. Nd2 {[%clk 0:02:33]}  h4 {[%clk 0:01:58]} 16. Ne2 {[%clk 0:02:31]}  Nh5 {[%clk 0:01:58]} 17. Bxe7 {[%clk 0:02:31]}  Qxe7 {[%clk 0:01:59]} 18. f4 {[%clk 0:02:31]}  Nxf4 {[%clk 0:01:40]} 19. Nxf4 {[%clk 0:02:31]}  exf4 {[%clk 0:01:41]} 20. Rxf4 {[%clk 0:02:31]}  a6 {[%clk 0:01:41]} 21. Nf3 {[%clk 0:02:22]}  c5 {[%clk 0:01:34]} 22. b4 {[%clk 0:02:14]}  cxb4 {[%clk 0:01:31]} 23. Ra5 {[%clk 0:02:07]}  O-O-O {[%clk 0:01:22]} 24. Nxd4 {[%clk 0:01:47]}  Qd6 {[%clk 0:01:21]} 25. Ne2 {[%clk 0:01:42]}  Qb6+ {[%clk 0:01:20]} 0-1


[Site "https://www.chess.com"]

[Event "Titled Tuesday Blitz October 11 Late 2022"]
[White "Kukula, Pawel"]
[Black "Svane, Rasmus"]
[WhiteFideId "1115081"]
[BlackFideId "4657101"]
[WhiteElo "2062"]
[BlackElo "2674"]
[Result "0-1"]
[Round "01"]
[TimeControl "180+1"]
[Date "2022.10.11"]
[WhiteClock "0:01:26"]
[BlackClock "0:02:13"]

1. c4 {[%clk 0:02:58]}  e6 {[%clk 0:02:58]} 2. Nc3 {[%clk 0:02:56]}  d5 {[%clk 0:02:58]} 3. e3 {[%clk 0:02:56]}  Nf6 {[%clk 0:02:58]} 4. Nf3 {[%clk 0:02:55]}  dxc4 {[%clk 0:02:58]} 5. Bxc4 {[%clk 0:02:55]}  a6 {[%clk 0:02:59]} 6. d4 {[%clk 0:02:53]}  b5 {[%clk 0:02:58]} 7. Bd3 {[%clk 0:02:53]}  Bb7 {[%clk 0:02:57]} 8. Qc2 {[%clk 0:02:44]}  Nbd7 {[%clk 0:02:53]} 9. O-O {[%clk 0:02:41]}  c5 {[%clk 0:02:53]} 10. dxc5 {[%clk 0:02:41]}  Nxc5 {[%clk 0:02:54]} 11. Be2 {[%clk 0:02:39]}  Rc8 {[%clk 0:02:53]} 12. Rd1 {[%clk 0:02:39]}  Qb6 {[%clk 0:02:53]} 13. Bd2 {[%clk 0:02:07]}  Bd6 {[%clk 0:02:53]} 14. Be1 {[%clk 0:02:06]}  O-O {[%clk 0:02:53]} 15. Qd2 {[%clk 0:02:06]}  Rfd8 {[%clk 0:02:53]} 16. Nd4 {[%clk 0:01:59]}  Bb8 {[%clk 0:02:53]} 17. b4 {[%clk 0:01:43]}  Ncd7 {[%clk 0:02:27]} 18. a4 {[%clk 0:01:33]}  Qc7 {[%clk 0:02:13]} 19. axb5 {[%clk 0:01:31]}  Qxh2+ {[%clk 0:02:12]} 20. Kf1 {[%clk 0:01:26]}  Qh1# {[%clk 0:02:13]} 0-1


[Site "https://www.chess.com"]